fUSD/lending_fUSD_20250629
["ID","MTS","AMOUNT","RATE_DAILY","PERIOD"]
[368517820,1751194303435,-2739.35,0.00029041,3]
[368517821,1751194303445,-1147.69,0.00029041,3]
[368517822,1751194303454,-677.47,0.00029041,3]
[368517823,1751194303464,-1983.22,0.00029041,3]
[368517824,1751194303473,-490.0,0.00029041,3]
[368517825,1751194303482,-490.0,0.00029041,3]
[368517826,1751194303491,-2990.15,0.00029041,3]
[368517827,1751194303500,-490.0,0.00029041,3]
[368517828,1751194303510,-1337.18,0.00029041,3]
[368517829,1751194303519,-2817.39,0.00029041,3]
[368517830,1751194303528,-552.49,0.00029041,3]
[368517831,1751194303538,-1850.59,0.00029041,3]
[368517832,1751194303548,-1361.21,0.00029041,3]
[368517833,1751194303557,-3507.44,0.00029041,3]
[368517834,1751194303567,-490.0,0.00029041,3]
[368517835,1751194303576,-2114.83,0.00029041,3]
[368517836,1751194303586,-1952.59,0.00029041,3]
[368517837,1751194303595,-314.286784,0.00029041,3]
[368517838,1751194303605,-335.340847,0.00029041,3]
[368517839,1751194303614,-810.52,0.00029041,3]
[368517840,1751194303624,-1714.23,0.00029041,3]
[368517841,1751194303633,-1796.3,0.00029041,3]
[368517842,1751194303643,-578.48,0.00029041,3]
[368517843,1751194303653,-1032.52,0.00029041,3]
[368517844,1751194303663,-818.2,0.00029041,3]
[368517845,1751194303672,-5334.23,0.00029041,3]
[368517846,1751194303682,-1491.58,0.00029041,3]
[368517847,1751194303691,-490.0,0.00029041,3]
[368517848,1751194303702,-490.0,0.00029041,3]
[368517849,1751194303711,-1968.49,0.00029041,3]
[368517850,1751194303721,-517.94,0.00029041,3]
[368517851,1751194303731,-1256.05,0.00029041,3]
[368517852,1751194303741,-1547.54,0.00029041,3]
[368517853,1751194303751,-21312.98,0.00029041,3]
[368517854,1751194303761,-335.341798,0.00029041,3]
[368517855,1751194303771,-600.66,0.00029041,3]
[368517856,1751194303780,-2796.12,0.00029041,3]
[368517857,1751194303790,-490.0,0.00029041,3]
[368517858,1751194303799,-1287.96,0.00029041,3]
[368517859,1751194303809,-306.44245,0.00029041,3]
[368517860,1751194303818,-1335.87,0.00029041,3]
[368517861,1751194303828,-1183.3,0.00029041,3]
[368517862,1751194303837,-3221.52,0.00029041,3]
[368517863,1751194303846,-490.0,0.00029041,3]
[368517864,1751194303856,-399.03884,0.00029041,3]
[368517865,1751194303866,-490.0,0.00029041,3]
[368517866,1751194303875,-744.85,0.00029041,3]
[368517867,1751194303884,-8244.69,0.00029041,3]
[368517868,1751194303894,-490.0,0.00029041,3]
[368517869,1751194303903,-1410.0,0.00029041,3]
[368517870,1751194303913,-490.0,0.00029041,3]
[368517871,1751194303922,-4501.21,0.00029041,3]
[368517872,1751194303932,-556.35790197,0.00029041,3]
[368517873,1751194303941,-14024.58,0.00029041,3]
[368517874,1751194303951,-717.96,0.00029041,3]
[368517875,1751194303960,-537.13,0.00029041,3]
[368517876,1751194303970,-1613.25,0.00029041,3]
[368517877,1751194303982,-3474.16,0.00029041,3]
[368517878,1751194303992,-2350.54,0.00029041,3]
[368517879,1751194304002,-9463.52,0.00029041,3]
[368517880,1751194304011,-537.29,0.00029041,3]
[368517881,1751194304022,-2017.18,0.00029041,3]
[368517882,1751194304032,-546.12,0.00029041,3]
[368517883,1751194304041,-594.99,0.00029041,3]
[368517884,1751194304051,-490.0,0.00029041,3]
[368517885,1751194304061,-650.77,0.00029041,3]
[368517886,1751194304070,-352.26964,0.00029041,3]
[368517887,1751194304079,-713.87,0.00029041,3]
[368517888,1751194304089,-490.0,0.00029041,3]
[368517889,1751194304098,-334.44413,0.00029041,3]
[368517890,1751194304108,-1560.06,0.00029041,3]
[368517891,1751194304117,-497.98,0.00029041,3]
[368517892,1751194304126,-2002.91,0.00029041,3]
[368517893,1751194304136,-1108.16,0.00029041,3]
[368517894,1751194304146,-1166.54,0.00029041,3]
[368517895,1751194304155,-644.91,0.00029041,3]
[368517896,1751194304165,-495.564615,0.00029041,3]
[368517897,1751194304174,-1184.84,0.00029041,3]
[368517898,1751194304183,-1691.47,0.00029041,3]
[368517899,1751194304193,-490.0,0.00029041,3]
[368517900,1751194304202,-1252.49,0.00029041,3]
[368517901,1751194304213,-11015.29,0.00029041,3]
[368517902,1751194304223,-2480.54,0.00029041,3]
[368517903,1751194304232,-990.59,0.00029041,3]
[368517904,1751194304242,-490.0,0.00029041,3]
[368517905,1751194304252,-2199.22,0.00029041,3]
[368517906,1751194304261,-652.43,0.00029041,3]
[368517907,1751194304270,-2658.27,0.00029041,3]
[368517908,1751194304279,-584.07235068,0.00029041,3]
[368517909,1751194304289,-1167.89,0.00029041,3]
[368517910,1751194304298,-490.13,0.00029041,3]
[368517911,1751194304308,-490.0,0.00029041,3]
[368517912,1751194304318,-521.1,0.00029041,3]
[368517913,1751194304329,-424.113485,0.00029041,3]
[368517914,1751194304339,-3083.1,0.00029041,3]
[368517915,1751194304350,-2246.22,0.00029041,3]
[368517916,1751194304359,-431.942577,0.00029041,3]
[368517917,1751194304369,-600.16,0.00029041,3]
[368517918,1751194304378,-1366.99,0.00029041,3]
[368517919,1751194304387,-1602.03,0.00029041,3]
[368517920,1751194304397,-1589.64,0.00029041,3]
[368517921,1751194304405,-1905.99,0.00029041,3]
[368517922,1751194304415,-1698.91,0.00029041,3]
[368517923,1751194304424,-604.22,0.00029041,3]
[368517924,1751194304433,-490.0,0.00029041,3]
[368517925,1751194304443,-546.79,0.00029041,3]
[368517926,1751194304452,-846.78,0.00029041,3]
[368517927,1751194304461,-5253.68,0.00029041,3]
[368517928,1751194304470,-1139.22,0.00029041,3]
[368517929,1751194304480,-490.0,0.00029041,3]
[368517930,1751194304489,-1140.25,0.00029041,3]
[368517931,1751194304498,-580.446544,0.00029041,3]
[368517932,1751194304508,-490.0,0.00029041,3]
[368517933,1751194304517,-1617.52,0.00029041,3]
[368517934,1751194304527,-519.66,0.00029041,3]
[368517935,1751194304536,-1421.13,0.00029041,3]
[368517936,1751194304545,-2798.55,0.00029041,3]
[368517937,1751194304555,-924.39,0.00029041,3]
[368517938,1751194304564,-490.0,0.00029041,3]
[368517939,1751194304574,-3246.95,0.00029041,3]
[368517940,1751194304583,-1691.2,0.00029041,3]
[368517941,1751194304592,-5131.41,0.00029041,3]
[368517942,1751194304601,-490.0,0.00029041,3]
[368517943,1751194304611,-1558.36,0.00029041,3]
[368517944,1751194304620,-992.92,0.00029041,3]
[368517945,1751194304630,-1147.15,0.00029041,3]
[368517946,1751194304639,-500.283145,0.00029041,3]
[368517947,1751194304649,-490.0,0.00029041,3]
[368517948,1751194304658,-490.0,0.00029041,3]
[368517949,1751194304668,-275.08,0.00029041,2]
[368517950,1751194304677,-851.3,0.00029041,3]
[368517951,1751194304687,-573.82,0.00029041,3]
[368517952,1751194304696,-1928.26,0.00029041,3]
[368517953,1751194304705,-551.905913,0.00029041,3]
[368517954,1751194304715,-508.0,0.00029144,9]
[368517955,1751194304724,-168.0,0.0002915,2]
[368517956,1751194304734,-11286.2825702,0.00029197,2]
[368517957,1751194304744,-701.25,0.00029313,3]
[368517958,1751194304753,-964.67,0.00029313,3]
[368517959,1751194304762,-834.71,0.00029313,3]
[368517960,1751194304771,-1226.58,0.00029313,3]
[368517961,1751194304781,-1509.58,0.00029313,3]
[368517962,1751194304790,-490.0,0.00029313,3]
[368517963,1751194304801,-1004.2,0.00029313,3]
[368517964,1751194304810,-490.0,0.00029313,3]
[368517965,1751194304819,-1273.37,0.00029313,3]
[368517966,1751194304828,-1282.38,0.00029313,3]
[368517967,1751194304838,-838.34,0.00029313,3]
[368517968,1751194304847,-1305.15,0.00029313,3]
[368517969,1751194304856,-245.19516903,0.00029313,3]
[368517970,1751194304865,-490.0,0.00029313,3]
[368517971,1751194304875,-490.0,0.00029313,3]
[368517972,1751194304884,-936.47,0.00029313,3]
[368517973,1751194304893,-931.86,0.00029313,3]
[368517974,1751194304902,-587.9,0.00029313,3]
[368517975,1751194304911,-566.58,0.00029313,3]
[368517976,1751194304921,-490.0,0.00029313,3]
[368517977,1751194304930,-526.6,0.00029313,3]
[368517978,1751194304940,-1109.31,0.00029313,3]
[368517979,1751194304949,-490.0,0.00029313,3]
[368517980,1751194304959,-1197.41,0.00029313,3]
[368517981,1751194304968,-643.14,0.00029313,3]
[368517982,1751194304980,-1261.79,0.00029313,3]
[368517983,1751194304989,-490.0,0.00029313,3]
[368517984,1751194304998,-1701.43,0.00029313,3]
[368517985,1751194305007,-1096.93,0.00029313,3]
[368517986,1751194305017,-527.61,0.00029313,3]
[368517987,1751194305026,-490.0,0.00029313,3]
[368517988,1751194305037,-754.15,0.00029313,3]
[368517989,1751194305047,-490.0,0.00029313,3]
[368517990,1751194305055,-1787.33,0.00029313,3]
[368517991,1751194305066,-2078.89,0.00029313,3]
[368517992,1751194305075,-620.67,0.00029313,3]
[368517993,1751194305084,-1393.39,0.00029313,3]
[368517994,1751194305093,-1144.96,0.00029313,3]
[368517995,1751194305104,-1657.47,0.00029313,3]
[368517996,1751194305113,-534.8,0.00029313,3]
[368517997,1751194305123,-1096.85,0.00029313,3]
[368517998,1751194305133,-1495.26,0.00029313,3]
[368517999,1751194305143,-2028.27,0.00029313,3]
[368518000,1751194305152,-892.04,0.00029313,3]
[368518001,1751194305162,-800.8,0.00029313,3]
[368518002,1751194305172,-563.11,0.00029313,3]
[368518003,1751194305182,-803.4,0.00029313,3]
[368518004,1751194305191,-490.0,0.00029313,3]
[368518005,1751194305202,-1032.49,0.00029313,3]
[368518006,1751194305211,-818.54,0.00029313,3]
[368518007,1751194305222,-490.0,0.00029313,3]
[368518008,1751194305231,-490.0,0.00029313,3]
[368518009,1751194305241,-1748.61,0.00029313,3]
[368518010,1751194305251,-583.52,0.00029313,3]
[368518011,1751194305261,-1254.67,0.00029313,3]
[368518012,1751194305270,-1561.33,0.00029313,3]
[368518013,1751194305279,-717.28,0.00029313,3]
[368518014,1751194305289,-1235.81,0.00029313,3]
[368518015,1751194305298,-709.31,0.00029313,3]
[368518016,1751194305307,-1584.73,0.00029313,3]
[368518017,1751194305316,-1927.49,0.00029313,3]
[368518018,1751194305325,-1391.05,0.00029313,3]
[368518019,1751194305335,-921.6,0.00029313,3]
[368518020,1751194305344,-490.0,0.00029313,3]
[368518021,1751194305353,-546.89,0.00029313,3]
[368518022,1751194305363,-1532.66,0.00029313,3]
[368518023,1751194305372,-1121.28,0.00029313,3]
[368518024,1751194305381,-1915.65,0.00029313,3]
[368518025,1751194305390,-490.0,0.00029313,3]
[368518026,1751194305399,-490.0,0.00029313,3]
[368518027,1751194305408,-640.3,0.00029313,3]
[368518028,1751194305418,-496.11,0.00029313,3]
[368518029,1751194305428,-1207.27,0.00029313,3]
[368518030,1751194305438,-1080.57,0.00029313,3]
[368518031,1751194305448,-1626.37,0.00029313,3]
[368518032,1751194305458,-490.0,0.00029313,3]
[368518033,1751194305475,-1384.15,0.00029313,3]
[368518034,1751194305484,-627.27,0.00029313,3]
[368518035,1751194305493,-490.0,0.00029313,3]
[368518036,1751194305502,-964.86,0.00029313,3]
[368518037,1751194305511,-1224.5,0.00029313,3]
[368518038,1751194305520,-1005.99,0.00029313,3]
[368518039,1751194305529,-1042.94,0.00029313,3]
[368518040,1751194305538,-490.0,0.00029313,3]
[368518041,1751194305547,-490.0,0.00029313,3]
[368518042,1751194305556,-490.0,0.00029314,3]
[368518043,1751194305565,-490.0,0.00029314,3]
[368518044,1751194305574,-490.0,0.00029314,3]
[368518045,1751194305583,-490.0,0.00029314,3]
[368518046,1751194305593,-490.0,0.00029314,3]
[368518047,1751194305602,-490.0,0.00029314,3]
[368518048,1751194305611,-300.0,0.00029314,3]
[368518049,1751194305620,-490.0,0.00029314,3]
[368518050,1751194305629,-490.0,0.00029314,3]
[368518051,1751194305639,-490.0,0.00029314,3]
[368518052,1751194305648,-490.0,0.00029314,3]
[368518053,1751194305658,-490.0,0.00029314,3]
[368518054,1751194305668,-490.0,0.00029314,3]
[368518055,1751194305677,-490.0,0.00029314,3]
[368518056,1751194305687,-490.0,0.00029314,3]
[368518057,1751194305696,-490.0,0.00029314,3]
[368518058,1751194305706,-686.32,0.00029314,3]
[368518059,1751194305715,-490.0,0.00029314,3]
[368518060,1751194305724,-690.4,0.00029314,3]
[368518061,1751194305733,-490.0,0.00029314,3]
[368518062,1751194305743,-513.52,0.00029314,3]
[368518063,1751194305751,-490.0,0.00029314,3]
[368518064,1751194305761,-490.0,0.00029314,3]
[368518065,1751194305770,-490.0,0.00029314,3]
[368518066,1751194305779,-490.0,0.00029314,3]
[368518067,1751194305788,-600.29,0.00029314,3]
[368518068,1751194305798,-490.0,0.00029314,3]
[368518069,1751194305807,-614.22591933,0.00029314,3]
[368518070,1751194305816,-174.25895012,0.00029314,3]
[368518071,1751194305826,-490.0,0.00029314,3]
[368518072,1751194305835,-490.0,0.00029314,3]
[368518073,1751194305845,-490.0,0.00029314,3]
[368518074,1751194305854,-490.0,0.00029314,3]
[368518075,1751194305863,-490.0,0.00029314,3]
[368518076,1751194305873,-490.0,0.00029314,3]
[368518077,1751194305882,-490.0,0.00029314,3]
[368518078,1751194305891,-490.0,0.00029314,3]
[368518079,1751194305900,-490.0,0.00029314,3]
[368518080,1751194305911,-490.0,0.00029314,3]
[368518081,1751194305920,-492.71,0.00029314,3]
[368518082,1751194305930,-490.0,0.00029314,3]
[368518083,1751194305939,-490.0,0.00029314,3]
[368518084,1751194305949,-537.68016909,0.00029315,3]
[368518085,1751194305958,-490.0,0.00029315,3]
[368518086,1751194306158,-490.0,0.00029315,3]
[368518087,1751194306168,-329.205099,0.00029315,3]
[368518088,1751194306179,-490.0,0.00029315,3]
[368518089,1751194306188,-490.0,0.00029315,3]
[368518090,1751194306198,-490.0,0.00029315,3]
[368518091,1751194306208,-490.0,0.00029315,3]
[368518092,1751194306219,-490.0,0.00029315,3]
[368518093,1751194306229,-490.0,0.00029315,3]
[368518094,1751194306239,-504.75631155,0.00029315,3]
[368518095,1751194306249,-490.0,0.00029315,3]
[368518096,1751194306259,-490.0,0.00029315,3]
[368518097,1751194306269,-554.36,0.00029315,3]
[368518098,1751194306278,-490.0,0.00029315,3]
[368518099,1751194306287,-490.0,0.00029315,3]
[368518100,1751194306296,-490.0,0.00029315,3]
[368518101,1751194306305,-490.0,0.00029315,3]
[368518102,1751194306314,-632.51,0.00029315,3]
[368518103,1751194306324,-507.78514782,0.00029315,3]
[368518104,1751194306333,-490.0,0.00029315,3]
[368518105,1751194306342,-532.4,0.00029315,3]
[368518106,1751194306351,-490.0,0.00029315,3]
[368518107,1751194306361,-468.40093416,0.00029315,3]
[368518108,1751194306370,-508.12,0.00029315,3]
[368518109,1751194306380,-490.0,0.00029315,3]
[368518110,1751194306389,-490.0,0.00029315,3]
[368518111,1751194306399,-701.73,0.00029315,3]
[368518112,1751194306408,-490.0,0.00029315,3]
[368518113,1751194306417,-490.0,0.00029315,3]
[368518114,1751194306427,-490.0,0.00029315,3]
[368518115,1751194306439,-580.93684996,0.00029315,3]
[368518116,1751194306450,-764.95,0.00029315,3]
[368518117,1751194306459,-490.0,0.00029315,3]
[368518118,1751194306468,-490.0,0.00029315,3]
[368518119,1751194306480,-490.0,0.00029315,3]
[368518120,1751194306490,-490.0,0.00029315,3]
[368518121,1751194306499,-490.0,0.00029315,3]
[368518122,1751194306508,-953.82,0.00029315,3]
[368518123,1751194306517,-490.0,0.00029315,3]
[368518124,1751194306527,-603.44,0.00029315,3]
[368518125,1751194306536,-633.93,0.00029315,3]
[368518126,1751194306545,-490.0,0.00029315,3]
[368518127,1751194306554,-864.91,0.00029315,3]
[368518128,1751194306563,-490.0,0.00029315,3]
[368518129,1751194306573,-497.74,0.00029315,3]
[368518130,1751194306582,-554.54966048,0.00029315,3]
[368518131,1751194306591,-490.0,0.00029315,3]
[368518132,1751194306600,-490.0,0.00029315,3]
[368518133,1751194306610,-490.0,0.00029315,3]
[368518134,1751194306619,-490.0,0.00029315,3]
[368518135,1751194306628,-490.0,0.00029315,3]
[368518136,1751194306638,-756.13,0.00029315,3]
[368518137,1751194306648,-490.0,0.00029315,3]
[368518138,1751194306657,-542.44,0.00029315,3]
[368518139,1751194306667,-1332.54,0.00029315,3]
[368518140,1751194306676,-863.82,0.00029315,3]
[368518141,1751194306686,-582.78014188,0.00029315,3]
[368518142,1751194306695,-591.84,0.00029315,3]
[368518143,1751194306704,-490.0,0.00029315,3]
[368518144,1751194306714,-490.0,0.00029315,3]
[368518145,1751194306724,-665.61,0.00029315,3]
[368518146,1751194306734,-769.64,0.00029315,3]
[368518147,1751194306743,-490.0,0.00029315,3]
[368518148,1751194306753,-555.79,0.00029315,3]
[368518149,1751194306762,-490.0,0.00029315,3]
[368518150,1751194306772,-490.0,0.00029315,3]
[368518151,1751194306782,-491.22,0.00029315,3]
[368518152,1751194306792,-627.43,0.00029315,3]
[368518153,1751194306802,-490.0,0.00029315,3]
[368518154,1751194306811,-617.55,0.00029315,3]
[368518155,1751194306821,-490.0,0.00029315,3]
[368518156,1751194306831,-1124.81,0.00029315,3]
[368518157,1751194306840,-621.58,0.00029315,3]
[368518158,1751194306849,-1265.66,0.00029315,3]
[368518159,1751194306859,-1066.44,0.00029315,3]
[368518160,1751194306868,-490.0,0.00029315,3]
[368518161,1751194306878,-606.66,0.00029315,3]
[368518162,1751194306887,-1063.39,0.00029315,3]
[368518163,1751194306897,-1075.06,0.00029315,3]
[368518164,1751194306906,-596.29,0.00029315,3]
[368518165,1751194306916,-490.0,0.00029315,3]
[368518166,1751194306925,-490.0,0.00029315,3]
[368518167,1751194306934,-620.94,0.00029315,3]
[368518168,1751194306943,-490.0,0.00029315,3]
[368518169,1751194306953,-490.0,0.00029315,3]
[368518170,1751194306962,-696.19,0.00029315,3]
[368518171,1751194306974,-490.0,0.00029315,3]
[368518172,1751194306984,-667.18,0.00029315,3]
[368518173,1751194306994,-684.75,0.00029315,3]
[368518174,1751194307003,-687.84,0.00029315,3]
[368518175,1751194307015,-490.0,0.00029315,3]
[368518176,1751194307025,-1683.35,0.00029315,3]
[368518177,1751194307035,-925.73,0.00029315,3]
[368518178,1751194307046,-884.56,0.00029315,3]
[368518179,1751194307056,-521.5,0.00029315,3]
[368518180,1751194307067,-1254.49,0.00029315,3]
[368518181,1751194307076,-558.94,0.00029315,3]
[368518182,1751194307085,-490.0,0.00029315,3]
[368518183,1751194307094,-1250.48,0.00029315,3]
[368518184,1751194307103,-490.0,0.00029315,3]
[368518185,1751194307113,-490.0,0.00029315,3]
[368518186,1751194307123,-490.0,0.00029315,3]
[368518187,1751194307131,-681.06,0.00029315,3]
[368518188,1751194307141,-490.0,0.00029315,3]
[368518189,1751194307151,-1517.03,0.00029315,3]
[368518190,1751194307160,-877.54,0.00029315,3]
[368518191,1751194307170,-490.0,0.00029315,3]
[368518192,1751194307179,-490.0,0.00029315,3]
[368518193,1751194307188,-490.0,0.00029315,3]
[368518194,1751194307198,-760.76,0.00029315,3]
[368518195,1751194307207,-490.0,0.00029315,3]
[368518196,1751194307216,-586.92,0.00029315,3]
[368518197,1751194307226,-490.0,0.00029315,3]
[368518198,1751194307235,-1020.66,0.00029315,3]
[368518199,1751194307244,-1288.09,0.00029315,3]
[368518200,1751194307254,-1866.57,0.00029315,3]
[368518201,1751194307264,-776.5,0.00029315,3]
[368518202,1751194307273,-490.0,0.00029315,3]
[368518203,1751194307283,-490.0,0.00029315,3]
[368518204,1751194307292,-640.5,0.00029315,3]
[368518205,1751194307302,-301.79548693,0.00029315,3]
[368518206,1751194307311,-499.32,0.00029315,3]
[368518207,1751194307320,-689.12,0.00029315,3]
[368518208,1751194307330,-759.09,0.00029315,3]
[368518209,1751194307339,-622.49,0.00029315,3]
[368518210,1751194307348,-930.36,0.00029315,3]
[368518211,1751194307356,-490.0,0.00029315,3]
[368518212,1751194307365,-1920.98,0.00029315,3]
[368518213,1751194307375,-936.48,0.00029315,3]
[368518214,1751194307384,-490.0,0.00029315,3]
[368518215,1751194307394,-490.0,0.00029315,3]
[368518216,1751194307403,-814.04,0.00029315,3]
[368518217,1751194307412,-1148.44,0.00029315,3]
[368518218,1751194307422,-1544.17,0.00029315,3]
[368518219,1751194307431,-1773.34,0.00029315,3]
[368518220,1751194307440,-490.0,0.00029315,3]
[368518221,1751194307450,-490.0,0.00029315,3]
[368518222,1751194307459,-522.27,0.00029315,3]
[368518223,1751194307468,-501.36,0.00029315,3]
[368518224,1751194307477,-490.0,0.00029315,3]
[368518225,1751194307487,-490.0,0.00029315,3]
[368518226,1751194307495,-648.51,0.00029315,3]
[368518227,1751194307505,-803.16,0.00029315,3]
[368518228,1751194307514,-1313.11,0.00029315,3]
[368518229,1751194307523,-490.0,0.00029315,3]
[368518230,1751194307532,-490.0,0.00029315,3]
[368518231,1751194307541,-751.58,0.00029315,3]
[368518232,1751194307550,-648.86,0.00029315,3]
[368518233,1751194307559,-1739.9,0.00029315,3]
[368518234,1751194307568,-514.77,0.00029315,3]
[368518235,1751194307577,-490.0,0.00029315,3]
[368518236,1751194307587,-490.0,0.00029315,3]
[368518237,1751194307595,-490.0,0.00029315,3]
[368518238,1751194307604,-490.0,0.00029315,3]
[368518239,1751194307613,-1125.58,0.00029315,3]
[368518240,1751194307622,-667.65,0.00029315,3]
[368518241,1751194307631,-1097.79,0.00029315,3]
[368518242,1751194307640,-745.5,0.00029315,3]
[368518243,1751194307650,-490.0,0.00029315,3]
[368518244,1751194307659,-492.31,0.00029315,3]
[368518245,1751194307668,-847.7,0.00029315,3]
[368518246,1751194307677,-641.45,0.00029315,3]
[368518247,1751194307686,-1986.36,0.00029315,3]
[368518248,1751194307695,-490.0,0.00029315,3]
[368518249,1751194307703,-490.0,0.00029315,3]
[368518250,1751194307713,-810.14,0.00029315,3]
[368518251,1751194307722,-613.92,0.00029315,3]
[368518252,1751194307731,-568.22,0.00029315,3]
[368518253,1751194307741,-490.0,0.00029315,3]
[368518254,1751194307750,-490.0,0.00029315,3]
[368518255,1751194307759,-682.37,0.00029315,3]
[368518256,1751194307768,-490.0,0.00029315,3]
[368518257,1751194307777,-703.34,0.00029315,3]
[368518258,1751194307786,-1604.97,0.00029315,3]
[368518259,1751194307795,-611.61,0.00029315,3]
[368518260,1751194307804,-1548.89,0.00029315,3]
[368518261,1751194307813,-490.0,0.00029315,3]
[368518262,1751194307822,-490.0,0.00029315,3]
[368518263,1751194307832,-490.0,0.00029315,3]
[368518264,1751194307842,-648.53,0.00029315,3]
[368518265,1751194307851,-929.36,0.00029315,3]
[368518266,1751194307860,-490.0,0.00029315,3]
[368518267,1751194307870,-490.0,0.00029315,3]
[368518268,1751194307879,-490.0,0.00029315,3]
[368518269,1751194307888,-490.0,0.00029315,3]
[368518270,1751194307898,-708.68,0.00029315,3]
[368518271,1751194307907,-490.0,0.00029315,3]
[368518272,1751194307917,-490.0,0.00029315,3]
[368518273,1751194307927,-490.0,0.00029315,3]
[368518274,1751194307937,-490.0,0.00029315,3]
[368518275,1751194307946,-538.70433938,0.00029315,3]
[368518276,1751194307955,-490.0,0.00029315,3]
[368518277,1751194307964,-1367.54,0.00029315,3]
[368518278,1751194307976,-1196.86,0.00029315,3]
[368518279,1751194307986,-946.15,0.00029315,3]
[368518280,1751194307996,-490.0,0.00029315,3]
[368518281,1751194308005,-490.0,0.00029315,3]
[368518282,1751194308015,-490.0,0.00029315,3]
[368518283,1751194308024,-490.0,0.00029315,3]
[368518284,1751194308034,-887.21,0.00029315,3]
[368518285,1751194308043,-1881.05,0.00029315,3]
[368518286,1751194308053,-490.0,0.00029315,3]
[368518287,1751194308063,-490.0,0.00029315,3]
[368518288,1751194308072,-680.84,0.00029315,3]
[368518289,1751194308081,-616.22,0.00029315,3]
[368518290,1751194308090,-1625.01,0.00029315,3]
[368518291,1751194308100,-490.0,0.00029315,3]
[368518292,1751194308109,-684.45,0.00029315,3]
[368518293,1751194308118,-578.97,0.00029315,3]
[368518294,1751194308128,-534.15,0.00029315,3]
[368518295,1751194308137,-490.0,0.00029315,3]
[368518296,1751194308147,-490.0,0.00029315,3]
[368518297,1751194308156,-490.0,0.00029315,3]
[368518298,1751194308165,-490.0,0.00029315,3]
[368518299,1751194308174,-871.36,0.00029315,3]
[368518300,1751194308183,-529.2,0.00029315,3]
[368518301,1751194308194,-612.59,0.00029315,3]
[368518302,1751194308203,-1690.95,0.00029315,3]
[368518303,1751194308212,-499.86,0.00029315,3]
[368518304,1751194308221,-972.25,0.00029315,3]
[368518305,1751194308231,-933.91,0.00029315,3]
[368518306,1751194308240,-983.04,0.00029315,3]
[368518307,1751194308249,-388.3380272,0.00029315,3]
[368518308,1751194308258,-1999.98,0.00029315,3]
[368518309,1751194308268,-567.17,0.00029315,3]
[368518310,1751194308277,-747.2,0.00029315,3]
[368518311,1751194308286,-3120.96,0.00029315,3]
[368518312,1751194308296,-1080.24,0.00029315,3]
[368518313,1751194308305,-1141.22,0.00029315,3]
[368518314,1751194308314,-5234.52,0.00029315,3]
[368518315,1751194308323,-1156.07,0.00029315,3]
[368518316,1751194308333,-723.63,0.00029315,3]
[368518317,1751194308342,-677.66,0.00029315,3]
[368518318,1751194308351,-534.04,0.00029315,3]
[368518319,1751194308361,-6702.81,0.00029315,3]